fUST/lending_fUST_20250527
["ID","MTS","AMOUNT","RATE_DAILY","PERIOD"]
[362458726,1748310633521,-459.4352748,0.00019452,2]
[362458727,1748310633532,-453.5,0.00019452,2]
[362458728,1748310633543,-430.0,0.00019452,2]
[362458729,1748310633553,-178.09285801,0.00019452,2]
[362458730,1748310633562,-430.0,0.00019452,2]
[362458731,1748310633572,-292.67784453,0.00019452,2]
[362458732,1748310633598,-130.63882692,0.00019452,2]
[362458733,1748310633608,-506.444931,0.00019452,2]
[362458734,1748310633618,-343.0623448,0.00019452,2]
[362458735,1748310633627,-555.90825274,0.00019452,2]
[362458736,1748310633638,-447.26478239,0.00019452,2]
[362458737,1748310633647,-430.0,0.00019452,2]
[362458738,1748310633657,-451.24036669,0.00019452,2]
[362458739,1748310633667,-445.89,0.00019452,2]
[362458740,1748310633677,-452.91586949,0.00019452,2]
[362458741,1748310633686,-430.0,0.00019452,2]
[362458742,1748310633696,-473.56,0.00019452,2]
[362458743,1748310633707,-451.53644999,0.00019452,2]
[362458744,1748310633718,-430.0,0.00019452,2]
[362458745,1748310633728,-448.58089059,0.00019452,2]
[362458746,1748310633739,-430.0,0.00019452,2]
[362458747,1748310633748,-297.45127855,0.00019452,2]
[362458748,1748310633761,-132.54872145,0.00019452,2]
[362458749,1748310633771,-273.38781446,0.00019452,2]
[362458750,1748310633781,-302.27194283,0.00019452,2]
[362458757,1748310638275,-127.72805717,0.00019452,2]
[362458759,1748310638285,-430.0,0.00019452,2]
[362458761,1748310638295,-1316.6102865,0.00019465,2]
[362458763,1748310638304,-511.54144007,0.00019648,2]
[362458765,1748310638318,-503.703443,0.00019648,2]
[362458767,1748310638328,-300.0,0.00019725,2]
[362458769,1748310638338,-430.0,0.00019726,2]
[362458771,1748310638347,-430.0,0.00019726,2]
[362458773,1748310638356,-524.97771611,0.00019726,2]
[362458775,1748310638366,-453.5,0.00019726,2]
[362458777,1748310638376,-430.0,0.00019726,2]
[362458780,1748310638385,-430.0,0.00019726,2]
[362458782,1748310638395,-430.0,0.00019726,2]
[362458784,1748310638404,-302.25790923,0.00019726,2]
[362458786,1748310638414,-430.0,0.00019726,2]
[362458788,1748310638423,-430.0,0.00019726,2]
[362458789,1748310638432,-572.24620887,0.00019726,2]
[362458790,1748310638442,-430.0,0.00019726,2]
[362458791,1748310638451,-432.2573901,0.00019762,2]
[362458793,1748310638461,-159.60660835,0.00019856,2]
[362458794,1748310638471,-500.6336685,0.00019856,2]
[362458795,1748310638481,-285.72626072,0.000199,2]
[362458796,1748310638491,-502.86405227,0.00019947,2]
[362458797,1748310638500,-500.70842975,0.00019994,2]
[362458798,1748310638510,-155.99599821,0.0002,2]
[362458799,1748310638519,-505.83895405,0.0002,2]
[362458800,1748310638529,-453.5,0.0002,2]
[362458801,1748310638538,-430.0,0.0002,2]
[362458802,1748310638548,-503.34501371,0.0002,2]
[362458803,1748310638558,-575.37786627,0.0002,2]
[362458804,1748310638567,-430.0,0.0002,2]
[362458805,1748310638577,-430.0,0.0002,2]
[362458806,1748310638587,-453.5,0.00020273,2]
[362458807,1748310638596,-430.0,0.00020273,2]
[362458808,1748310638606,-313.51389904,0.00020273,2]
[362458809,1748310638616,-430.0,0.00020273,2]
[362458810,1748310638626,-181.83,0.00020319,2]
[362458811,1748310638636,-453.5,0.00020547,2]
[362458812,1748310638645,-430.0,0.00020547,2]
[362458814,1748310638655,-430.0,0.00020547,2]
[362458815,1748310638664,-207.4,0.00020639,2]
[362458816,1748310638674,-423.08503179,0.00020752,2]
[362458818,1748310638684,-160.0,0.00020762,2]
[362458820,1748310638693,-160.0,0.00020762,2]
[362458822,1748310638703,-160.0,0.00020762,2]
[362458824,1748310638713,-160.0,0.00020762,2]
[362458827,1748310638725,-212.59253735,0.00020762,2]
[362458829,1748310638735,-229.09384914,0.00020762,2]
[362458831,1748310638745,-160.0,0.00020762,2]
[362458833,1748310638755,-160.0,0.00020762,2]
[362458835,1748310638765,-488.36278646,0.0002082,2]
[362458837,1748310638774,-447.00841742,0.0002082,2]
[362458839,1748310638783,-430.0,0.0002082,2]
[362458841,1748310638793,-430.0,0.0002082,2]
[362458843,1748310638803,-430.0,0.0002082,2]
[362458845,1748310638813,-444.8716264,0.0002082,2]
[362458847,1748310638823,-455.3847995,0.0002082,2]
[362458849,1748310638832,-430.0,0.0002082,2]
[362458851,1748310638842,-455.92682698,0.0002082,2]
[362458853,1748310638851,-430.0,0.0002082,2]
[362458855,1748310638861,-439.80104381,0.0002082,2]
[362458857,1748310638871,-430.0,0.0002082,2]
[362458859,1748310638881,-430.0,0.0002082,2]
[362458861,1748310638890,-439.28298965,0.0002082,2]
[362458863,1748310638901,-453.5,0.00020821,2]
[362458865,1748310638911,-430.0,0.00020821,2]
[362458867,1748310638920,-430.0,0.00020821,2]
[362458869,1748310638930,-534.73438812,0.000209,4]
[362458871,1748310638939,-534.73438805,0.00021038,4]
[362458873,1748310638949,-303.37,0.00021076,2]
[362458875,1748310638958,-430.0,0.00021094,2]
[362458878,1748310638968,-430.0,0.00021094,2]
[362458880,1748310638979,-394.21054188,0.00021094,2]
[362458882,1748310638989,-430.0,0.00021094,2]
[362458884,1748310638998,-430.0,0.00021094,2]
[362458886,1748310639009,-430.0,0.00021094,2]
[362458888,1748310639018,-430.0,0.00021094,2]
[362458890,1748310639028,-453.5,0.00021095,2]
[362458892,1748310639037,-430.0,0.00021095,2]
[362458894,1748310639047,-430.0,0.00021095,2]
[362458896,1748310639056,-600.0,0.00021164,2]
[362458898,1748310639065,-534.73438805,0.00021176,4]
[362458900,1748310639075,-272.74,0.00021242,2]
[362458902,1748310639085,-534.73438805,0.00021314,5]
[362458904,1748310639094,-387.53325305,0.00021368,2]
[362458906,1748310639103,-430.0,0.00021368,2]
[362458908,1748310639112,-430.0,0.00021368,2]
[362458910,1748310639122,-430.0,0.00021368,2]
[362458912,1748310639132,-265.72505684,0.00021368,2]
[362458914,1748310639141,-453.5,0.00021369,2]
[362458916,1748310639151,-430.0,0.00021369,2]
[362458918,1748310639161,-430.0,0.00021369,2]
[362458920,1748310639175,-534.73438805,0.00021452,5]
[362458922,1748310639185,-534.73438805,0.0002159,5]
[362458924,1748310639195,-365.13819432,0.00021642,2]
[362458926,1748310639204,-430.0,0.00021642,2]
[362458928,1748310639215,-430.0,0.00021642,2]
[362458930,1748310639226,-453.5,0.00021643,2]
[362458933,1748310639236,-430.0,0.00021643,2]
[362458935,1748310639248,-430.0,0.00021643,2]
[362458937,1748310639258,-534.73438805,0.00021728,5]
[362458939,1748310639268,-534.73438805,0.00021866,6]
[362458941,1748310639278,-166.22050537,0.00021916,2]
[362458943,1748310639287,-430.0,0.00021916,2]
[362458945,1748310639297,-453.5,0.00021917,2]
[362458947,1748310639307,-430.0,0.00021917,2]
[362458949,1748310639316,-430.0,0.00021917,2]
[362458951,1748310639326,-534.73438805,0.00022003,6]
[362458953,1748310639336,-215.0738,0.00022008,2]
[362458955,1748310639345,-534.73438805,0.00022141,6]
[362458957,1748310639354,-363.66,0.00022166,2]
[362458959,1748310639363,-430.0,0.0002219,2]
[362458961,1748310639373,-453.5,0.00022191,2]
[362458975,1748310639507,-430.0,0.00022191,2]
[362458977,1748310639517,-430.0,0.00022191,2]
[362458979,1748310639527,-600.0,0.0002226,2]
[362458981,1748310639537,-534.73438805,0.00022279,6]
[362458984,1748310639547,-534.73438805,0.00022417,7]
[362458986,1748310639557,-430.0,0.00022464,2]
[362458988,1748310639568,-453.5,0.00022465,2]
[362458990,1748310639578,-430.0,0.00022465,2]
[362458992,1748310639587,-430.0,0.00022465,2]
[362458994,1748310639597,-534.73438805,0.00022555,7]
[362458996,1748310639607,-1079.15706223,0.00022557,2]
[362458998,1748310639616,-534.73438805,0.00022693,7]
[362459000,1748310639626,-430.0,0.00022738,2]
[362459002,1748310639636,-453.5,0.00022739,2]
[362459004,1748310639646,-516.14372115,0.00022739,2]
[362459006,1748310639655,-430.0,0.00022739,2]
[362459008,1748310639665,-534.73438805,0.00022831,8]
[362459010,1748310639675,-493.0,0.000229,2]
[362459012,1748310639684,-534.73438805,0.00022969,8]
[362459014,1748310639694,-430.0,0.00023012,2]
[362459016,1748310639704,-453.5,0.00023013,2]
[362459018,1748310639715,-430.0,0.00023013,2]
[362459020,1748310639725,-454.57,0.0002309,2]
[362459022,1748310639735,-534.73438805,0.00023107,8]
[362459024,1748310639745,-153.0,0.00023233,2]
[362459026,1748310639754,-534.73438805,0.00023245,8]
[362459028,1748310639764,-154.5467886,0.0002326,2]
[362459030,1748310639774,-179.6740017,0.0002326,2]
[362459032,1748310639783,-153.0,0.0002326,2]
[362459034,1748310639793,-153.0,0.0002326,2]
[362459036,1748310639803,-493.730107,0.00023275,3]
[362459038,1748310639813,-562.92503221,0.00023286,2]
[362459040,1748310639822,-453.5,0.00023287,2]
[362459042,1748310639831,-430.0,0.00023287,2]
[362459044,1748310639841,-600.0,0.00023356,2]
[362459046,1748310639851,-223.0315306,0.00023377,2]
[362459048,1748310639861,-534.73438805,0.00023383,9]
[362459050,1748310639870,-534.73438805,0.00023521,9]
[362459052,1748310639880,-453.5,0.00023561,2]
[362459054,1748310639890,-430.0,0.00023561,2]
[362459056,1748310639900,-1000.0,0.000236,3]
[362459058,1748310639909,-534.73438805,0.00023659,9]
[362459061,1748310639919,-11476.626,0.000237,2]
[362459064,1748310639929,-1092.31872751,0.000237,2]
[362459066,1748310639939,-534.73438805,0.00023797,9]
[362459068,1748310639949,-58719.33021982,0.000238,7]
[362459070,1748310639962,-667.58803514,0.000238,7]
[362459072,1748310639974,-4762.42631778,0.000238,7]
[362459074,1748310639986,-3946.814388,0.000238,7]
[362459077,1748310639998,-3125.95978342,0.000238,7]
[362459079,1748310640009,-28231.87461066,0.000238,7]
[362459081,1748310640020,-1056.37985105,0.000238,7]
[362459126,1748310640635,-420.0,0.00021484,2]
[362459127,1748310640646,-587.0,0.00023401,2]
[362459128,1748310640656,-4359.76125823,0.000238,7]
[362459129,1748310640667,-374.03276725,0.000238,7]
[362459130,1748310640680,-1212.94581559,0.000238,7]
[362459395,1748310643516,-6886.15945939,0.000238,7]
[362459421,1748310643875,-36.64853829,0.000238,7]
[362459422,1748310643888,-1463.06412754,0.000238,7]
[362459423,1748310643900,-549.575,0.000238,7]
[362459424,1748310643912,-3239.21286451,0.000238,7]
[362459919,1748310964315,10000.0,0.00024658,120]
[362459920,1748311043523,1007.0,0.00024657,120]
[362459926,1748311307350,-247.9892442,0.00018311,2]
[362459927,1748311307376,-150.0,0.00019078,2]
[362459928,1748311307400,-160.0,0.00019163,2]
[362459929,1748311307425,-300.0,0.00019173,2]
[362459930,1748311307451,-500.0,0.00019174,2]
[362459931,1748311307475,-644.188053,0.00019174,2]
[362459932,1748311307500,-500.0,0.00019174,2]
[362459933,1748311307523,-500.0,0.00019174,2]
[362459934,1748311307547,-500.0,0.00019174,2]
[362459935,1748311307570,-500.0,0.00019174,2]
[362459936,1748311307594,-500.06266419,0.00019174,2]
[362459937,1748311307623,-500.0,0.00019174,2]
[362459938,1748311307647,-500.0,0.00019174,2]
[362459939,1748311307670,-500.0,0.00019174,2]
[362459940,1748311307695,-417.06688597,0.00019174,2]
[362459941,1748311307718,-500.0,0.00019174,2]
[362459942,1748311307742,-500.0,0.00019174,2]
[362459943,1748311307770,-500.0,0.00019174,2]
[362459944,1748311307800,-532.11510209,0.00019174,2]
[362459945,1748311307829,-559.8938684,0.00019174,2]
[362459946,1748311307857,-500.0,0.00019174,2]
[362459947,1748311307882,-500.0,0.00019174,2]
[362459948,1748311307910,-649.58196618,0.00019174,2]
[362459949,1748311307936,-715.0,0.00019174,2]
[362459950,1748311307962,-300.0,0.00019174,2]
[362459951,1748311307989,-21082.70221597,0.00019175,2]
[362459952,1748311397202,1561.0,0.00024,120]
[362459953,1748311468471,500.0,0.00024657,120]
[362459954,1748311506795,661.0,0.00024657,120]
[362459955,1748311534127,-300.0,0.00019177,2]
[362459956,1748311534151,-213.00743177,0.00019177,2]
[362459957,1748311534175,-336.90167801,0.00019177,2]
[362459958,1748311534198,-43.52822386,0.00019178,2]
[362459962,1748311627087,-160.0,0.00019176,2]
[362459963,1748311627110,-300.0,0.00019177,2]
[362459964,1748311627132,-442.11734651,0.00019178,2]
[362459965,1748311627155,-430.0,0.00019178,2]
[362459966,1748311627177,-340.34067063,0.00019178,2]
[362459967,1748311627204,-430.0,0.00019178,2]
[362459968,1748311627229,-455.72732044,0.00019178,2]
[362459969,1748311627251,-442.55557091,0.00019178,2]
[362459970,1748311627278,-430.97579018,0.00019178,2]
[362459971,1748311627299,-172.59109881,0.00019178,2]
[362459972,1748311639093,-270.39885736,0.00019178,2]
[362459973,1748311639117,-498.15,0.00019178,2]
[362459974,1748311639141,-93.73547949,0.00019178,2]
[362459975,1748311647161,-336.26452051,0.00019178,2]
[362459976,1748311647183,-430.0,0.00019178,2]
[362459977,1748311647204,-430.0,0.00019178,2]
[362459978,1748311647225,-430.0,0.00019178,2]
[362459979,1748311647248,-430.0,0.00019178,2]
[362459980,1748311647269,-430.0,0.00019178,2]
[362459981,1748311647292,-411.65051915,0.00019178,2]
[362459982,1748311647314,-474.30393435,0.00019178,2]
[362459983,1748311647334,-430.0,0.00019178,2]
[362459984,1748311647355,-394.85998625,0.00019178,2]
[362459985,1748311647376,-447.58325611,0.00019178,2]
[362459986,1748311647397,-434.16335058,0.00019178,2]
[362459987,1748311647420,-430.0,0.00019178,2]
[362459988,1748311647442,-434.85379222,0.00019178,2]
[362459989,1748311647467,-430.0,0.00019178,2]
[362459990,1748311647487,-487.83660049,0.00019178,2]
[362459991,1748311647508,-430.0,0.00019178,2]
[362459992,1748311647531,-430.0,0.00019178,2]
[362459993,1748311647552,-436.08005814,0.00019178,2]
[362459994,1748311647577,-517.12,0.00019178,2]
[362459995,1748311647601,-430.0,0.00019178,2]
[362459996,1748311647624,-430.0,0.00019178,2]
[362459997,1748311647651,-430.0,0.00019178,2]
[362459998,1748311647674,-185.475592,0.00019178,2]
[362459999,1748311647698,-8047.07828192,0.00019178,2]
[362460000,1748311652094,-430.0,0.00019178,2]
[362460001,1748311652116,-13007.60634184,0.00019178,2]
[362460022,1748311832545,-150.0,0.00019113,2]
[362460024,1748311832562,-175.05563696,0.00019177,2]
[362460026,1748311832575,-124.94436304,0.00019177,2]
[362460028,1748311832584,-325.82080296,0.00019178,2]
[362460030,1748311832596,-104.17919704,0.00019178,2]
[362460032,1748311832606,-407.90672233,0.00019178,2]
[362460034,1748311832617,-22.09327767,0.00019178,2]
[362460036,1748311832627,-200.51449022,0.00019178,2]
[362460038,1748311832637,-430.0,0.00019178,2]
[362460040,1748311832646,-158.75885642,0.00019178,2]
[362460042,1748311832656,-430.0,0.00019178,2]
[362460044,1748311832665,-430.0,0.00019178,2]
[362460046,1748311832674,-430.0,0.00019178,2]
[362460048,1748311832684,-430.0,0.00019178,2]
[362460051,1748311832693,-430.0,0.00019178,2]
[362460053,1748311832703,-430.0,0.00019178,2]
[362460055,1748311832714,-448.41938041,0.00019452,2]
[362460057,1748311832723,-430.0,0.00019452,2]
[362460059,1748311832732,-430.0,0.00019452,2]
[362460061,1748311832742,-430.0,0.00019452,2]
[362460063,1748311832752,-299.07313352,0.00019452,2]
[362460065,1748311832764,-130.92686648,0.00019452,2]
[362460067,1748311832778,-184.51058116,0.00019452,2]
[362460070,1748311832791,-245.48941884,0.00019452,2]
[362460072,1748311832801,-430.0,0.00019452,2]
[362460074,1748311832810,-430.0,0.00019452,2]
[362460076,1748311832819,-163.96,0.00019452,2]
[362460078,1748311832830,-430.0,0.00019452,2]
[362460080,1748311832839,-8025.55444354,0.00019452,2]
[362460082,1748311832849,-430.0,0.00019726,2]
[362460084,1748311832858,-430.0,0.00019726,2]
[362460086,1748311832868,-430.0,0.00019726,2]
[362460088,1748311832878,-430.0,0.00019726,2]
[362460090,1748311832887,-304.20062972,0.00019726,2]
[362460092,1748311832898,-430.0,0.00019726,2]
[362460094,1748311832907,-430.0,0.00019726,2]
[362460095,1748311832916,-430.0,0.00019726,2]
[362460096,1748311832925,-608.69348824,0.0001978,2]
[362460097,1748311832935,-501.70824918,0.0001978,2]
[362460098,1748311832944,-169.91,0.0002,2]
[362460099,1748311832954,-430.0,0.0002,2]
[362460100,1748311832963,-430.0,0.0002,2]
[362460101,1748311832974,-430.0,0.0002,2]
[362460102,1748311832984,-430.0,0.0002,2]
[362460103,1748311832994,-430.0,0.0002,2]
[362460104,1748311833003,-430.0,0.0002,2]
[362460105,1748311833013,-150.0,0.00020023,2]
[362460106,1748311833022,-426.93345508,0.0002026,2]
[362460107,1748311833032,-504.66641701,0.0002026,2]
[362460108,1748311833042,-500.0,0.0002026,2]
[362460109,1748311833051,-500.0,0.0002026,2]
[362460110,1748311833061,-500.0,0.0002026,2]
[362460111,1748311833071,-430.0,0.00020273,2]
[362460112,1748311833080,-237.1760256,0.00020273,2]
[362460113,1748311833090,-430.0,0.00020273,2]
[362460114,1748311833100,-430.0,0.00020273,2]
[362460115,1748311833110,-430.0,0.00020273,2]
[362460116,1748311833120,-203.1948,0.00020273,2]
[362460117,1748311833130,-505.14559696,0.00020375,2]
[362460118,1748311833140,-504.83197011,0.00020375,2]
[362460119,1748311833149,-430.0,0.00020547,2]
[362460120,1748311833159,-430.0,0.00020547,2]
[362460121,1748311833169,-430.0,0.00020547,2]
[362460122,1748311833179,-430.0,0.00020547,2]
[362460123,1748311833190,-229.18805157,0.000207,2]
[362460124,1748311833200,-160.0,0.000207,2]
[362460125,1748311833210,-212.62946336,0.00020711,2]
[362460126,1748311833220,-12656.54583329,0.00020717,2]
[362460127,1748311833230,-355.21397268,0.00020778,2]
[362460128,1748311833239,-391.92570787,0.00020778,2]
[362460129,1748311833248,-500.0,0.00020778,2]
[362460130,1748311833258,-154.70737633,0.00020778,2]
[362460131,1748311833269,-500.0,0.00020778,2]
[362460132,1748311833278,-24573.8993811,0.00020779,2]
[362460133,1748311833288,-359.68020578,0.00020821,2]
[362460134,1748311833297,-430.0,0.00020821,2]
[362460135,1748311833307,-430.0,0.00020821,2]
[362460136,1748311833317,-430.0,0.00020821,2]
[362460137,1748311833326,-208.5540334,0.00020832,2]
[362460138,1748311833336,-197.0,0.00020899,2]
[362460139,1748311833345,-207.51192804,0.000209,4]
[362460140,1748311833355,-213.05,0.00020933,2]
[362460141,1748311833364,-242.696,0.00021089,2]
[362460142,1748311833374,-207.51192784,0.0002109,4]
[362460143,1748311833384,-430.0,0.00021095,2]
[362460144,1748311833393,-430.0,0.00021095,2]
[362460145,1748311833405,-430.0,0.00021095,2]
[362460146,1748311833418,-500.0,0.00021164,2]
[362460147,1748311833432,-207.51192784,0.00021281,5]
[362460148,1748311833445,-430.0,0.00021369,2]
[362460149,1748311833458,-424.83,0.00021369,2]
[362460150,1748311833471,-430.0,0.00021369,2]
[362460151,1748311833483,-207.4,0.00021405,2]
[362460152,1748311833496,-207.51192784,0.00021471,5]
[362460153,1748311833506,-430.0,0.00021643,2]
[362460154,1748311833517,-430.0,0.00021643,2]
[362460155,1748311833527,-207.51192784,0.00021662,5]
[362460156,1748311833539,-284.07,0.00021843,2]
[362460157,1748311833552,-207.51192784,0.00021852,6]
[362460158,1748311833564,-430.0,0.00021917,2]
[362460159,1748311833576,-430.0,0.00021917,2]
[362460160,1748311833588,-207.51192784,0.00022043,6]
[362460161,1748311833600,-430.0,0.00022191,2]
[362460162,1748311833611,-430.0,0.00022191,2]
[362460163,1748311833623,-207.51192784,0.00022233,6]
[362460164,1748311833634,-500.0,0.0002226,2]
[362460165,1748311833645,-207.51192784,0.00022424,7]
[362460166,1748311833656,-430.0,0.00022465,2]
[362460167,1748311833668,-430.0,0.00022465,2]
[362460168,1748311833680,-886.84951569,0.00022558,2]
[362460169,1748311833693,-207.51192784,0.00022614,7]
[362460170,1748311833708,-430.0,0.00022739,2]
[362460171,1748311833721,-430.0,0.00022739,2]
[362460172,1748311833733,-355.08,0.00022753,2]
[362460173,1748311833746,-215.0738,0.00022774,2]
[362460174,1748311833758,-207.51192784,0.00022805,8]
[362460175,1748311833771,-723.65,0.00022978,3]
[362460176,1748311833782,-273.1398512,0.00022986,2]
[362460177,1748311833794,-153.0,0.00022986,2]
[362460178,1748311833806,-153.0,0.00022986,2]
[362460179,1748311833819,-153.0,0.00022986,2]
[362460180,1748311833830,-207.51192784,0.00022995,8]
[362460181,1748311833842,-211.9129,0.00023013,2]
[362460182,1748311833857,-430.0,0.00023013,2]
[362460183,1748311833869,-723.65,0.00023078,3]
[362460184,1748311833883,-723.65,0.00023178,7]
[362460185,1748311833895,-207.51192784,0.00023186,8]
[362460186,1748311833907,-444.357096,0.00023275,3]
[362460187,1748311833918,-723.65,0.00023278,5]
[362460188,1748311833930,-430.0,0.00023287,2]
[362460189,1748311833942,-500.0,0.00023356,2]
[362460190,1748311833953,-207.51192784,0.00023376,9]
[362460191,1748311833964,-723.65,0.00023378,5]
[362460192,1748311833974,-723.65,0.00023478,7]
[362460193,1748311833984,-430.0,0.00023561,2]
[362460194,1748311833995,-207.51192784,0.00023567,9]
[362460195,1748311834007,-723.65,0.00023578,2]
[362460196,1748311834018,-426.1,0.00023663,2]
[362460197,1748311834030,-723.65,0.00023678,6]
[362460198,1748311834042,-165.38323392,0.000237,2]
[362460199,1748311834055,-207.51192784,0.00023757,9]
[362460200,1748311834066,-723.65,0.00023778,5]
[362460201,1748311834078,-2320.55759523,0.00023799,3]
[362460202,1748311834091,-128334.1596326,0.00023799,2]
[362460203,1748311834109,-1272.54478092,0.00023799,2]
[362460204,1748311834124,-6333.67103448,0.00023799,2]
[362460226,1748311838655,-2713.11747665,0.00023799,2]
[362460229,1748311838670,-11772.46563072,0.00023799,2]
[362460232,1748311838685,-52389.69607399,0.00023799,2]
[362460403,1748311840817,-71847.44681246,0.00023799,2]
[362460424,1748311843628,-1001.846831,0.00023799,2]
[362460712,1748311846682,-1587.67214718,0.00023799,2]
[362460714,1748311846693,-14596.78405097,0.000238,7]
[362460725,1748311846930,-8477.42432731,0.000238,7]
[362460756,1748311847216,-16196.01088223,0.000238,7]
[362460929,1748312061731,5543.87823334,0.00024657,120]
[362460930,1748312087532,10000.0,0.00016,10]
[362460931,1748312110657,10000.0,0.00021918,30]
[362460933,1748312134934,6189.73800078,0.00016,2]
[362460934,1748312134959,3810.26199922,0.00016,2]
[362460935,1748312286368,10000.0,0.00021918,30]
[362460936,1748312298519,10000.0,0.00024658,120]
[362460937,1748312307156,10000.0,0.00021918,30]
[362460938,1748312366549,4116.0,0.00021918,30]
[362460941,1748312835141,-181.219091,0.00018859,2]
[362460942,1748312835164,-150.0,0.00019085,2]
[362460943,1748312835186,-300.0,0.00019177,2]
[362460944,1748312835207,-300.0,0.00019177,2]
[362460945,1748312835229,-430.0,0.00019178,2]
[362460946,1748312835251,-442.04760234,0.00019178,2]
[362460947,1748312835272,-16.46029583,0.00019178,2]
[362460948,1748312841084,-450.21445791,0.00019178,2]
[362460949,1748312841106,-472.90756016,0.00019178,2]
[362460950,1748312841128,-430.0,0.00019178,2]
[362460951,1748312841153,-451.50363553,0.00019178,2]
[362460952,1748312841174,-464.68135692,0.00019178,2]
[362460953,1748312841197,-430.0,0.00019178,2]
[362460954,1748312841220,-353.18295749,0.00019178,2]
[362460955,1748312854244,-146.81704251,0.00019178,2]
[362460956,1748312854270,-430.89615495,0.00019178,2]
[362460957,1748312854295,-458.29222238,0.00019178,2]
[362460958,1748312854321,-441.14156027,0.00019178,2]
[362460959,1748312854347,-430.0,0.00019178,2]
[362460960,1748312854377,-309.59440848,0.00019178,2]
[362460961,1748312854402,-310.14001524,0.00019178,2]
[362460962,1748312854425,-442.68265901,0.00019178,2]
[362460963,1748312854447,-471.65834206,0.00019178,2]
[362460964,1748312854470,-461.81919041,0.00019178,2]
[362460965,1748312854492,-449.28588198,0.00019178,2]
[362460966,1748312854515,-430.0,0.00019359,2]
[362460967,1748312854538,-430.0,0.00019359,2]
[362460968,1748312854561,-445.8948729,0.00019359,2]
[362460969,1748312854584,-430.0,0.00019359,2]
[362460970,1748312854607,-430.0,0.00019359,2]
[362460971,1748312854630,-156.70973206,0.00019359,2]
[362461024,1748313031736,-150.0,0.00019089,2]
[362461025,1748313031746,-430.0,0.00019359,2]
[362461027,1748313031756,-549.61668359,0.00019359,2]
[362461029,1748313031765,-430.0,0.00019359,2]
[362461031,1748313031775,-430.0,0.00019359,2]
[362461032,1748313031785,-503.07787364,0.00019359,2]
[362461033,1748313031795,-430.0,0.00019359,2]
[362461034,1748313031805,-552.19,0.00019359,2]
[362461036,1748313031815,-523.83,0.00019359,2]
[362461037,1748313031824,-273.29026794,0.00019359,2]
[362461039,1748313031836,-430.60641832,0.00019359,2]
[362461041,1748313031846,-430.0,0.00019359,2]
[362461043,1748313031856,-430.0,0.00019359,2]
[362461044,1748313031866,-443.671346,0.00019359,2]
[362461046,1748313031875,-363.11132358,0.00019359,2]
[362461048,1748313031889,-441.9383175,0.00019359,2]
[362461049,1748313031899,-430.0,0.00019359,2]
[362461050,1748313031909,-430.0,0.00019359,2]
[362461051,1748313031918,-430.0,0.00019359,2]
[362461052,1748313031928,-430.0,0.00019359,2]
[362461053,1748313031938,-380.0,0.00019359,2]
[362461054,1748313031948,-446.43,0.00019359,2]
[362461055,1748313031957,-430.0,0.00019359,2]
[362461056,1748313031968,-430.0,0.00019359,2]
[362461058,1748313031977,-2819.2450933,0.0001936,2]
[362461060,1748313031986,-475.03538997,0.0001945,2]
[362461061,1748313031995,-452.97767489,0.0001945,2]
[362461063,1748313032005,-566.65656318,0.00019451,2]
[362461065,1748313032015,-310.24312124,0.00019451,2]
[362461067,1748313032024,-468.81816845,0.00019451,2]